fUSD/lending_fUSD_20250223
["ID","MTS","AMOUNT","RATE_DAILY","PERIOD"]
[354152543,1740291044240,-337.746512,0.00020255,2]
[354152544,1740291044250,-182.350202,0.00020255,2]
[354152545,1740291044259,-151.0,0.00020255,2]
[354152546,1740291044268,-151.0,0.00020255,2]
[354152547,1740291044278,-151.0,0.00020255,2]
[354152548,1740291044287,-151.0,0.00020255,2]
[354152549,1740291044299,-151.0,0.00020255,2]
[354152550,1740291044308,-151.0,0.00020255,2]
[354152551,1740291044318,-1600.0,0.00020255,2]
[354152552,1740291044327,-1600.0,0.00020255,2]
[354152553,1740291044336,-1600.0,0.00020255,2]
[354152554,1740291044345,-1600.0,0.00020255,2]
[354152555,1740291044354,-1600.0,0.00020255,2]
[354152556,1740291044363,-1600.0,0.00020255,2]
[354152557,1740291044372,-1600.0,0.00020255,2]
[354152558,1740291044381,-151.0,0.00020255,2]
[354152559,1740291044391,-1600.0,0.00020255,2]
[354152560,1740291044400,-1600.0,0.00020255,2]
[354152561,1740291044411,-151.0,0.00020255,2]
[354152562,1740291044420,-159.588424,0.00020255,2]
[354152563,1740291044429,-1600.0,0.00020255,2]
[354152564,1740291044439,-1600.0,0.00020255,2]
[354152565,1740291044448,-1600.0,0.00020255,2]
[354152566,1740291044458,-1600.0,0.00020255,2]
[354152567,1740291044467,-1600.0,0.00020255,2]
[354152568,1740291044476,-1600.0,0.00020255,2]
[354152569,1740291044485,-1600.0,0.00020255,2]
[354152570,1740291044494,-1600.0,0.00020255,2]
[354152571,1740291044503,-1600.0,0.00020255,2]
[354152572,1740291044513,-151.0,0.00020255,2]
[354152573,1740291044522,-151.0,0.00020255,2]
[354152574,1740291044531,-151.0,0.00020255,2]
[354152575,1740291044540,-151.0,0.00020255,2]
[354152576,1740291044550,-151.0,0.00020255,2]
[354152577,1740291044559,-151.0,0.00020255,2]
[354152578,1740291044569,-151.0,0.00020255,2]
[354152579,1740291044579,-184.866033,0.00020255,2]
[354152580,1740291044588,-184.866033,0.00020255,2]
[354152581,1740291044597,-184.866033,0.00020255,2]
[354152582,1740291044607,-184.866033,0.00020255,2]
[354152583,1740291044616,-184.866033,0.00020255,2]
[354152584,1740291044625,-184.866033,0.00020255,2]
[354152585,1740291044635,-184.866033,0.00020255,2]
[354152586,1740291044644,-184.866033,0.00020255,2]
[354152587,1740291044654,-184.866033,0.00020255,2]
[354152588,1740291044663,-184.866033,0.00020255,2]
[354152589,1740291044672,-184.866033,0.00020255,2]
[354152590,1740291044682,-184.866033,0.00020255,2]
[354152591,1740291044691,-184.866033,0.00020255,2]
[354152592,1740291044701,-184.866033,0.00020255,2]
[354152593,1740291044711,-184.866033,0.00020255,2]
[354152594,1740291044720,-184.866033,0.00020255,2]
[354152595,1740291044729,-184.866033,0.00020255,2]
[354152596,1740291044738,-184.866041,0.00020255,2]
[354152597,1740291044747,-152.579377,0.00020255,2]
[354152598,1740291044756,-151.0,0.00020255,2]
[354152599,1740291044766,-160.840508,0.00020255,2]
[354152600,1740291044774,-160.840508,0.00020255,2]
[354152601,1740291044783,-160.840508,0.00020255,2]
[354152602,1740291044792,-160.840508,0.00020255,2]
[354152603,1740291044802,-160.840508,0.00020255,2]
[354152604,1740291044812,-160.840508,0.00020255,2]
[354152605,1740291044821,-160.840508,0.00020255,2]
[354152606,1740291044831,-160.840508,0.00020255,2]
[354152607,1740291044841,-160.840508,0.00020255,2]
[354152608,1740291044850,-160.840508,0.00020255,2]
[354152609,1740291044859,-160.840508,0.00020255,2]
[354152610,1740291044869,-160.840508,0.00020255,2]
[354152611,1740291044880,-160.840508,0.00020255,2]
[354152612,1740291044890,-160.840508,0.00020255,2]
[354152613,1740291044900,-160.840508,0.00020255,2]
[354152614,1740291044909,-160.840508,0.00020255,2]
[354152615,1740291044920,-160.840508,0.00020255,2]
[354152616,1740291044930,-160.840516,0.00020255,2]
[354152617,1740291044939,-600.0,0.00020255,120]
[354152618,1740291044952,-670872.22400743,0.00020255,40]
[354152619,1740291044967,-437.22126349,0.00020255,40]
[354152620,1740291044977,-496.99999,0.00020255,40]
[354152621,1740291044988,-784.500026,0.00020255,40]
[354152622,1740291044999,-286.49996773,0.00020255,40]
[354152623,1740291045010,-348.23005832,0.00020255,40]
[354152624,1740291045026,-488.45942115,0.00020255,40]
[354152625,1740291045037,-670.435461,0.00020255,40]
[354152626,1740291045048,-14346.66954172,0.00020255,40]
[354152627,1740291045059,-1016.2321986,0.00020255,40]
[354152628,1740291045107,-208392.91153456,0.00020255,40]
[354152629,1740291045119,-5668.01,0.00020255,40]
[354152630,1740291045134,-464.86247294,0.00020255,40]
[354152631,1740291045145,-45163.11086246,0.00020255,40]
[354152632,1740291045156,-435.00996,0.00020255,40]
[354152633,1740291045167,-566.84138598,0.00020255,40]
[354152634,1740291045178,-30789.35792431,0.00020255,40]
[354152635,1740291045207,-32230.89119513,0.00020255,40]
[354152636,1740291045218,-1052.0806342,0.00020255,40]
[354152637,1740291045233,-2768.10488298,0.00020255,40]
[354152638,1740291045249,-485.13509783,0.00020255,40]
[354152639,1740291045260,-2881.29586654,0.00020255,40]
[354152640,1740291045275,-10420.0,0.00020255,40]
[354152641,1740291045331,-613.38781924,0.00020255,2]
[354152642,1740291045467,-1.61218076,0.00020255,2]
[354152643,1740291045477,-3174.99216367,0.00020255,40]
[354152644,1740291045493,-619.819988,0.00020255,40]
[354152645,1740291045506,-983.48528388,0.00020255,40]
[354152646,1740291045518,-1897.84509495,0.00020255,40]
[354152647,1740291045529,-451.88977681,0.00020255,40]
[354152648,1740291045541,-7275.61848666,0.00020255,40]
[354152649,1740291045553,-269.4574533,0.00020255,40]
[354152650,1740291045564,-1270.0003,0.00020255,40]
[354152651,1740291045576,-4367.572404,0.00020255,40]
[354152652,1740291045587,-2700.0,0.00020255,40]
[354152653,1740291045602,-547.85,0.00020255,40]
[354152655,1740291045612,-303.68361147,0.00020255,40]
[354152657,1740291045624,-8061.9412682,0.00020255,40]
[354152659,1740291045753,-622.15636844,0.00015547,2]
[354152660,1740291045764,-487.84363156,0.00015547,2]
[354152661,1740291045774,-11711.53308868,0.00020255,40]
[354152662,1740291045785,-366.96669407,0.00020255,40]
[354152663,1740291045798,-643105.6954833,0.00020255,40]
[354152664,1740291045812,-281.0,0.00020255,40]
[354152665,1740291045823,-1039.449305,0.00020255,40]
[354152666,1740291045874,-746.86239996,0.00020255,40]
[354152667,1740291045886,-3289.49631852,0.00020255,40]
[354152668,1740291045899,-934.40077117,0.00020255,40]
[354152669,1740291045942,290.15,8.767e-05,2]
[354152670,1740291045955,-3956.12553987,0.00020255,40]
[354152671,1740291045966,-172708.8431359,0.00020255,40]
[354152672,1740291045995,-369.61441154,0.00020255,40]
[354152673,1740291046006,-69121.25727671,0.00020255,40]
[354152674,1740291046055,-6983.2881696,0.00020255,40]
[354152675,1740291046067,-270.775,0.00020255,40]
[354152676,1740291046079,-644.03279346,0.00020255,40]
[354152685,1740291074740,456.7454,9.9e-05,2]
[354152686,1740291233737,163.364791,0.00010958,2]
[354152687,1740291308317,174.702141,0.00010958,2]
[354152688,1740291317665,163.259981,0.00010958,2]
[354152689,1740291325899,156.191229,0.00010958,2]
[354152690,1740291534317,163.364791,0.00010958,2]
[354152691,1740291548906,174.702142,0.00010958,2]
[354152692,1740291731218,174.702142,0.00010958,2]
[354152693,1740291775017,163.364791,0.00010958,2]
[354152694,1740291907962,460076.63744831,0.0001,2]
[354152698,1740292122809,175.23,8.767e-05,2]
[354152715,1740292231989,-10916.7658873,9.9e-05,2]
[354152716,1740292232001,-2816.1527127,9.9e-05,2]
[354152718,1740292232010,-12515.0289,9.9e-05,2]
[354152720,1740292232020,-150.0,9.999e-05,2]
[354152721,1740292232029,-221.67214557,9.999e-05,2]
[354152722,1740292232039,-1556.29024786,0.0001,2]
[354152723,1740292232050,-5068.89012956,0.0001,2]
[354152724,1740292232061,-2336.70888591,0.0001,2]
[354152725,1740292232073,-9432.41340714,0.0001,2]
[354152726,1740292232135,-42097.73069236,0.0001,2]
[354152727,1740292232146,-1290.0,0.0001,2]
[354152728,1740292232216,-9988.60844733,0.0001,2]
[354152729,1740292232344,-4.66817488,0.0001,2]
[354152730,1740292232380,-330508.05195681,0.0001,2]
[354152731,1740292232390,-550.0,0.0001,2]
[354152732,1740292232399,-11299.79695726,0.0001,2]
[354152733,1740292232408,-806.91227397,0.00010544,2]
[354152734,1740292232418,-150.0,0.00010643,2]
[354152735,1740292232427,-160.38053233,0.000109,2]
[354152736,1740292232435,-205.04019373,0.000109,2]
[354152737,1740292232445,-163.364792,0.00010958,2]
[354152738,1740292232455,-255.0,0.00010999,2]
[354152739,1740292232464,-150.0,0.00011,2]
[354152740,1740292232473,-163.69019341,0.00011187,2]
[354152741,1740292232482,-544.81301397,0.00011571,2]
[354152742,1740292232491,-600.0,0.00012,2]
[354152743,1740292232501,-152.0,0.00012099,2]
[354152744,1740292232510,-150.0,0.00012293,2]
[354152745,1740292232519,-168.82076776,0.000123,2]
[354152746,1740292232531,-168.82076762,0.000123,2]
[354152747,1740292232541,-168.82076762,0.000123,2]
[354152748,1740292232551,-168.82076762,0.000123,2]
[354152749,1740292232559,-168.82076762,0.000123,2]
[354152750,1740292232569,-168.82076762,0.00012532,2]
[354152751,1740292232582,-163.69019337,0.00012685,2]
[354152752,1740292232591,-168.82076762,0.00013058,2]
[354152753,1740292232601,-160.38053231,0.00013325,2]
[354152754,1740292232610,-168.82076762,0.00013584,2]
[354152755,1740292232620,-23900.0,0.00013697,2]
[354152756,1740292232629,-157.96,0.00013699,2]
[354152757,1740292232638,-168.82076762,0.00014111,2]
[354152758,1740292232648,-163.69019337,0.00014182,2]
[354152759,1740292232659,-409.58,0.00014243,2]
[354152760,1740292232669,-166.52,0.00014621,2]
[354152761,1740292232678,-168.82076762,0.00014637,2]
[354152762,1740292232687,-37758.48822525,0.000148,3]
[354152763,1740292232699,-1016.00119555,0.000148,3]
[354152764,1740292232712,-423.30030765,0.000148,3]
[354152765,1740292232734,-803.28453,0.000148,3]
[354152766,1740292232747,-750.37477044,0.000148,3]
[354152769,1740292238049,-769.22313,0.00014504,2]
[354152770,1740292238062,-257.97850835,0.00014504,2]
[354152771,1740292238071,-1893.07921605,0.000148,3]
[354152772,1740292238184,-10801.54761796,0.000148,3]
[354152773,1740292238197,-153.0,0.00014971,2]
[354152774,1740292238207,-153.0,0.00014971,2]
[354152775,1740292238229,-13361.5189657,0.0001499,3]
[354152776,1740292238242,-4593.0,0.00015,3]
[354152777,1740292238256,-20750.29964571,0.00015,2]
[354152778,1740292238274,-13570.73173644,0.00015,2]
[354152779,1740292238291,-1021.65474558,0.00015,2]
[354152780,1740292238315,-1308.31387227,0.00015,2]
[354152781,1740292238326,-546.809999,0.000151,2]
[354152782,1740292238337,-1000.0,0.00015154,2]
[354152783,1740292238348,-168.82076762,0.00015163,2]
[354152784,1740292238361,-290.15,0.00015516,2]
[354152785,1740292238372,-495.7,0.0001552,2]
[354152786,1740292238383,-10395.52688323,0.00015522,3]
[354152787,1740292238396,-867.20949215,0.00015522,3]
[354152798,1740292240084,-2098.78259032,0.00015522,3]
[354152799,1740292240097,-492.63,0.00015522,2]
[354152800,1740292240108,-500.1,0.00015526,2]
[354152801,1740292240119,-509.17,0.00015532,2]
[354152802,1740292240130,-499.72,0.00015541,2]
[354152803,1740292240140,-490.09,0.00015557,2]
[354152804,1740292240151,-528.392,0.00015563,2]
[354152805,1740292240163,-151.0,0.00015563,2]
[354152806,1740292240173,-2027.0,0.00015563,2]
[354152807,1740292240182,-1275.0,0.00015563,2]
[354152808,1740292240193,-898.533,0.00015563,2]
[354152809,1740292240204,-3918.0,0.00015563,2]
[354152810,1740292240214,-507.33,0.0001558,2]
[354152811,1740292240224,-490.11,0.00015614,2]
[354152812,1740292240235,-498.99,0.00015676,2]
[354152813,1740292240247,-163.69019337,0.0001568,2]
[354152814,1740292240259,-168.82076762,0.00015689,2]
[354152815,1740292240270,-497.6,0.0001577,2]
[354152816,1740292240280,-200.0,0.00015934,2]
[354152817,1740292240291,-150.77,0.00016016,2]
[354152818,1740292240302,-150.38,0.00016016,2]
[354152819,1740292240313,-1000.0,0.00016016,2]
[354152820,1740292240323,-1000.0,0.00016016,2]
[354152821,1740292240332,-1000.0,0.00016016,2]
[354152822,1740292240341,-1000.0,0.00016016,2]
[354152823,1740292240350,-1000.0,0.00016016,2]
[354152824,1740292240361,-1000.0,0.00016016,2]
[354152825,1740292240372,-1000.0,0.00016016,2]
[354152826,1740292240382,-1000.0,0.00016016,2]
[354152827,1740292240391,-1000.0,0.00016016,2]
[354152828,1740292240402,-1000.0,0.00016016,2]
[354152829,1740292240412,-1000.0,0.00016016,2]
[354152830,1740292240424,-1000.0,0.00016016,2]
[354152831,1740292240435,-1000.0,0.00016016,2]
[354152832,1740292240447,-1058.0,0.00016016,2]
[354152833,1740292240458,-13361.5189657,0.00016075,3]
[354152834,1740292240469,-5800.0,0.00016077,2]
[354152835,1740292240481,-5800.0,0.00016085,2]
[354152836,1740292240492,-173.87818507,0.00016093,2]
[354152837,1740292240502,-5800.0,0.00016094,2]
[354152838,1740292240511,-150.99,0.00016116,2]
[354152839,1740292240522,-7220.93,0.00016116,2]
[354152840,1740292240532,-504.15,0.00016181,2]
[354152842,1740292240541,-168.82076762,0.00016216,2]
[354152844,1740292240552,-225.50598285,0.00016419,2]
[354152846,1740292240562,-250.0,0.00016457,2]
[354152848,1740292240574,-53446.0758629,0.0001649,3]
[354152850,1740292240586,-100000.0,0.000165,2]
[354152852,1740292240597,-409.58,0.00016507,2]
[354152855,1740292240610,-500.0,0.00016533,2]
[354152857,1740292240621,-176.473,0.00016563,2]
[354152859,1740292240632,-987.753,0.00016563,2]
[354152861,1740292240642,-200.0,0.00016568,2]
[354152863,1740292240652,-169.17,0.00016573,2]
[354152865,1740292240663,-495.55,0.00016622,2]
[354152867,1740292240673,-13531.2051,0.00016645,2]
[354152869,1740292240683,-4761.7817,0.00016645,2]
[354152871,1740292240693,-168.82076762,0.00016742,2]
[354152873,1740292240703,-160.38053231,0.00016749,2]
[354152874,1740292240713,-26723.0379314,0.0001699,3]
[354152875,1740292240723,-50000.0,0.00017,2]
[354152876,1740292240733,-1000.0,0.00017048,2]
[354152877,1740292240743,-5800.0,0.00017123,2]
[354152878,1740292240754,-163.69019337,0.00017178,2]
[354152879,1740292240763,-168.82076762,0.00017268,2]
[354152880,1740292240774,-180.84,0.00017361,2]
[354152881,1740292240783,-26723.0379314,0.0001749,3]
[354152882,1740292240794,-50000.0,0.000175,2]
[354152883,1740292240803,-168.82076762,0.00017795,2]
[354152884,1740292240813,-26723.0379314,0.0001799,3]
[354152886,1740292240823,-150.79,0.0001799,2]
[354152888,1740292240833,-50000.0,0.00018,2]
[354152890,1740292240843,-500.96,0.00018306,2]
[354152892,1740292240852,-168.82076762,0.00018321,2]
[354152894,1740292240862,-2024.0,0.00018563,2]
[354152896,1740292240872,-1272.0,0.00018563,2]
[354152898,1740292240881,-154.62,0.000186,2]
[354152900,1740292240891,-163.69019337,0.00018675,2]
[354152902,1740292240901,-300.0,0.00018717,2]
[354152904,1740292240911,-229.81200653,0.00018717,2]
[354152907,1740292240922,-409.58,0.00018771,2]
[354152909,1740292240931,-168.82076762,0.00018847,2]
[354152911,1740292240942,-500.0,0.00018886,2]
[354152913,1740292240951,-1000.0,0.00018942,2]
[354152915,1740292240961,-1005.0,0.00019,2]
[354152917,1740292240971,-153.35,0.00019198,2]
[354152919,1740292240981,-200.0,0.000192,2]
[354152921,1740292240991,-2484.95525012,0.00019274,2]
[354152923,1740292241000,-2484.95524998,0.00019274,2]
[354152925,1740292241011,-13361.5189657,0.00019287,3]
[354152927,1740292241022,-440.41,0.00019288,2]
[354152930,1740292241031,-181.22,0.00019288,2]
[354152932,1740292241042,-9114.4406,0.00019297,2]
[354152934,1740292241052,-157.19574938,0.00019315,5]
[354152936,1740292241062,-157.19574938,0.00019315,5]
[354152938,1740292241072,-153.35,0.00019326,2]
[354152940,1740292241085,-168.82076762,0.00019374,2]
[354152943,1740292241096,-414.85,0.00019397,30]
[354152945,1740292241107,-150.0,0.00019425,2]
[354152947,1740292241118,-439.38,0.00019425,2]
[354152949,1740292241129,-150.0,0.00019425,2]
[354152951,1740292241140,-150.0,0.00019425,2]
[354152953,1740292241150,-439.38,0.00019425,2]
[354152956,1740292241161,-150.0,0.00019425,2]
[354152958,1740292241172,-150.0,0.00019425,2]
[354152960,1740292241182,-150.0,0.00019425,2]
[354152962,1740292241192,-153.35,0.00019454,2]
[354152964,1740292241203,-500.0,0.000195,2]
[354152966,1740292241214,-500.0,0.000195,2]
[354152968,1740292241225,-500.0,0.000195,2]
[354152970,1740292241235,-500.0,0.000195,2]
[354152973,1740292241245,-500.0,0.000195,2]
[354152975,1740292241255,-500.0,0.000195,2]
[354152977,1740292241266,-500.0,0.000195,2]
[354152979,1740292241276,-500.0,0.000195,2]
[354152981,1740292241287,-153.35,0.00019582,2]
[354152983,1740292241297,-1000.0,0.00019689,2]
[354152985,1740292241308,-3000.0,0.000197,2]
[354152987,1740292241318,-153.35,0.0001971,2]
[354152990,1740292241329,-13361.5189657,0.00019716,3]
[354152992,1740292241340,-500.0,0.00019726,3]
[354152994,1740292241350,-160.31,0.00019726,3]
[354152996,1740292241363,-500.0,0.00019726,3]
[354152998,1740292241374,-503.66563928,0.00019726,3]
[354153000,1740292241385,-606.03272022,0.00019726,3]
[354153003,1740292241396,-501.42527962,0.00019726,3]
[354153005,1740292241406,-500.0,0.00019726,3]
[354153007,1740292241417,-500.0,0.00019726,3]
[354153009,1740292241428,-500.0,0.00019726,3]
[354153011,1740292241438,-500.0,0.00019726,3]
[354153013,1740292241448,-500.0,0.00019726,3]
[354153015,1740292241458,-500.0,0.00019726,3]
[354153017,1740292241468,-500.0,0.00019726,3]
[354153019,1740292241478,-500.0,0.00019726,3]
[354153022,1740292241488,-500.0,0.00019726,3]
[354153024,1740292241498,-500.0,0.00019726,3]
[354153026,1740292241508,-500.0,0.00019726,3]
[354153028,1740292241518,-500.0,0.00019726,3]
[354153030,1740292241528,-500.0,0.00019726,3]
[354153032,1740292241538,-500.0,0.00019726,3]
[354153034,1740292241549,-500.0,0.00019726,3]
[354153059,1740292241783,-500.0,0.00019726,3]
[354153062,1740292241799,-500.0,0.00019726,3]
[354153064,1740292241810,-500.0,0.00019726,3]
[354153066,1740292241820,-521.38585086,0.00019726,3]
[354153068,1740292241829,-500.0,0.00019726,3]
[354153070,1740292241838,-500.0,0.00019726,3]
[354153072,1740292241847,-500.0,0.00019726,3]
[354153074,1740292241856,-500.0,0.00019726,3]
[354153076,1740292241866,-500.0,0.00019726,3]
[354153078,1740292241875,-500.0,0.00019726,3]
[354153080,1740292241885,-500.0,0.00019726,3]
[354153082,1740292241893,-500.0,0.00019726,3]
[354153084,1740292241903,-500.0,0.00019726,3]
[354153086,1740292241912,-500.0,0.00019726,3]
[354153088,1740292241921,-500.0,0.00019726,3]
[354153090,1740292241930,-500.0,0.00019726,3]
[354153092,1740292241939,-500.0,0.00019726,3]
[354153094,1740292241949,-500.0,0.00019726,3]
[354153096,1740292241958,-500.0,0.00019726,3]
[354153098,1740292241966,-500.0,0.00019726,3]
[354153100,1740292241976,-500.0,0.00019726,3]
[354153102,1740292241986,-500.0,0.00019726,3]
[354153104,1740292241995,-500.0,0.00019726,3]
[354153106,1740292242004,-500.0,0.00019726,3]
[354153107,1740292242014,-500.0,0.00019726,3]
[354153110,1740292242023,-500.0,0.00019726,3]
[354153111,1740292242033,-500.0,0.00019726,3]
[354153114,1740292242042,-500.0,0.00019726,3]
[354153116,1740292242052,-500.0,0.00019726,3]
[354153118,1740292242062,-500.0,0.00019726,3]
[354153120,1740292242072,-500.0,0.00019726,3]
[354153121,1740292242081,-500.0,0.00019726,3]
[354153123,1740292242090,-500.0,0.00019726,3]
[354153125,1740292242099,-500.0,0.00019726,3]
[354153127,1740292242109,-500.0,0.00019726,3]
[354153130,1740292242119,-500.0,0.00019726,3]
[354153131,1740292242128,-500.0,0.00019726,3]
[354153133,1740292242137,-500.0,0.00019726,3]
[354153136,1740292242147,-500.0,0.00019726,3]
[354153138,1740292242156,-500.0,0.00019726,3]
[354153139,1740292242165,-540.76,0.00019726,3]
[354153142,1740292242174,-500.0,0.00019726,3]
[354153143,1740292242184,-500.0,0.00019726,3]
[354153145,1740292242193,-500.0,0.00019726,3]
[354153148,1740292242202,-470.75,0.00019726,3]
[354153149,1740292242211,-500.0,0.00019726,3]
[354153151,1740292242221,-500.0,0.00019726,3]
[354153153,1740292242230,-500.0,0.00019726,3]
[354153155,1740292242239,-255.91174663,0.00019726,2]
[354153157,1740292242248,-500.0,0.00019726,3]
[354153159,1740292242257,-500.0,0.00019726,3]
[354153161,1740292242266,-521.87264983,0.00019726,3]
[354153163,1740292242275,-500.43708325,0.00019726,3]
[354153165,1740292242284,-500.0,0.00019726,3]
[354153167,1740292242293,-500.0,0.00019726,3]
[354153169,1740292242303,-500.0,0.00019726,3]
[354153171,1740292242312,-501.53326184,0.00019726,3]
[354153173,1740292242322,-500.0,0.00019726,3]
[354153176,1740292242334,-500.0,0.00019726,3]
[354153178,1740292242346,-500.0,0.00019726,3]
[354153180,1740292242355,-500.0,0.00019726,3]
[354153182,1740292242364,-500.0,0.00019726,3]
[354153184,1740292242374,-505.17414901,0.00019726,3]
[354153186,1740292242383,-207.52964361,0.00019726,3]
[354153188,1740292242391,-500.0,0.00019726,3]
[354153190,1740292242401,-500.0,0.00019726,3]
[354153192,1740292242410,-504.45405491,0.00019726,3]
[354153194,1740292242419,-500.0,0.00019726,3]
[354153196,1740292242428,-501.98027309,0.00019726,3]
[354153198,1740292242438,-500.0,0.00019726,3]
[354153200,1740292242447,-500.0,0.00019726,3]
[354153202,1740292242455,-509.2156352,0.00019726,3]
[354153204,1740292242464,-274.55809524,0.00019776,2]
[354153206,1740292242474,-26723.0379314,0.00019779,3]
[354153208,1740292242483,-26723.0379314,0.00019786,3]
[354153210,1740292242492,-26723.0379314,0.00019787,3]
[354153212,1740292242502,-50003.7405,0.00019789,2]
[354153214,1740292242511,-500.0,0.00019796,3]
[354153216,1740292242520,-500.0,0.00019796,3]
[354153218,1740292242529,-500.0,0.00019796,3]
[354153220,1740292242538,-500.0,0.00019796,3]
[354153222,1740292242547,-500.0,0.00019796,3]
[354153224,1740292242555,-500.0,0.00019796,3]
[354153225,1740292242564,-500.0,0.00019796,3]
[354153228,1740292242576,-500.0,0.00019796,3]
[354153230,1740292242586,-500.0,0.00019796,3]
[354153232,1740292242596,-500.0,0.00019796,3]
[354153233,1740292242605,-500.0,0.00019796,3]
[354153235,1740292242615,-500.0,0.00019796,3]
[354153237,1740292242624,-500.0,0.00019796,3]
[354153240,1740292242634,-500.0,0.00019796,3]
[354153242,1740292242643,-500.0,0.00019796,3]
[354153243,1740292242653,-500.0,0.00019796,3]
[354153245,1740292242663,-500.94105854,0.00019796,3]
[354153247,1740292242672,-500.0,0.00019796,3]
[354153249,1740292242681,-500.0,0.00019796,3]
[354153252,1740292242691,-500.0,0.00019796,3]
[354153254,1740292242700,-245.95890932,0.00019796,3]
[354153257,1740292242710,-500.0,0.00019796,3]
[354153260,1740292242719,-518.95445534,0.00019796,3]
[354153263,1740292242728,-500.0,0.00019796,3]
[354153266,1740292242737,-500.0,0.00019796,3]
[354153268,1740292242746,-500.0,0.00019796,3]
[354153269,1740292242755,-512.23028045,0.00019796,3]
[354153272,1740292242764,-500.0,0.00019796,3]
[354153274,1740292242773,-520.39538676,0.00019796,3]
[354153277,1740292242782,-500.0,0.00019796,3]
[354153279,1740292242791,-547.38924996,0.00019796,3]
[354153280,1740292242800,-500.0,0.00019796,3]
[354153282,1740292242810,-500.0,0.00019796,3]
[354153285,1740292242819,-500.0,0.00019796,3]
[354153287,1740292242829,-500.0,0.00019796,3]
[354153288,1740292242838,-500.0,0.00019796,3]
[354153291,1740292242848,-500.0,0.00019796,3]
[354153293,1740292242858,-500.0,0.00019796,3]
[354153295,1740292242867,-500.0,0.00019796,3]
[354153297,1740292242876,-500.0,0.00019796,3]
[354153298,1740292242885,-500.0,0.00019796,3]
[354153301,1740292242895,-500.0,0.00019796,3]
[354153302,1740292242904,-500.0,0.00019796,3]
[354153304,1740292242913,-500.0,0.00019796,3]
[354153306,1740292242923,-1000.0,0.00019796,3]
[354153308,1740292242932,-500.0,0.00019796,3]
[354153310,1740292242942,-500.0,0.00019796,3]
[354153312,1740292242952,-500.0,0.00019796,3]
[354153314,1740292242961,-500.0,0.00019796,3]
[354153316,1740292242970,-500.0,0.00019796,3]
[354153318,1740292242980,-500.0,0.00019796,3]
[354153320,1740292242989,-500.0,0.00019796,3]
[354153322,1740292242998,-500.0,0.00019797,3]
[354153324,1740292243007,-245.26,0.00019797,3]
[354153326,1740292243017,-500.0,0.00019797,3]
[354153328,1740292243026,-500.0,0.00019797,3]
[354153330,1740292243035,-500.0,0.00019797,3]
[354153332,1740292243044,-500.0,0.00019797,3]
[354153335,1740292243053,-500.0,0.00019797,3]
[354153337,1740292243063,-519.07392315,0.00019797,3]
[354153339,1740292243072,-246.74991513,0.00019797,3]
[354153341,1740292243081,-500.0,0.00019797,3]
[354153343,1740292243090,-284.37618743,0.00019797,3]
[354153345,1740292243100,-500.0,0.00019797,3]
[354153347,1740292243108,-500.0,0.00019797,3]
[354153349,1740292243118,-500.0,0.00019797,3]
[354153350,1740292243128,-512.57293284,0.00019797,3]
[354153351,1740292243137,-500.0,0.00019797,3]
[354153352,1740292243147,-182.33030113,0.00019797,3]
[354153353,1740292243156,-500.0,0.00019797,3]
[354153354,1740292243165,-246.42,0.00019797,3]